[Event "Live Chess"]
[Site "Chess.com"]
[Date "2024.06.02"]
[Round "-"]
[White "friarnator"]
[Black "Tatarinov_Maxim"]
[Result "1-0"]
[WhiteElo "2195"]
[BlackElo "2288"]
[TimeControl "300"]
[EndTime "5:27:20 PDT"]
[Termination "friarnator won by resignation"]

1. d4 {[%clk 0:04:57.8]} 1... Nf6 {[%clk 0:04:58.3]} 2. Nc3 {[%clk 0:04:55.3]}
2... g6 {[%clk 0:04:55.9]} 3. Bf4 {[%clk 0:04:53.1]} 3... d6 {[%clk 0:04:55.2]}
4. Qd2 {[%clk 0:04:52.3]} 4... Bg7 {[%clk 0:04:54.6]} 5. Bh6 {[%clk 0:04:50.3]}
5... O-O {[%clk 0:04:53.7]} 6. h4 {[%clk 0:04:48.7]} 6... c5 {[%clk 0:04:49.8]}
7. Nf3 {[%clk 0:04:41.2]} 7... cxd4 {[%clk 0:04:41]} 8. Nxd4 {[%clk 0:04:39.9]}
8... Nc6 {[%clk 0:04:40.1]} 9. Nxc6 {[%clk 0:04:37.4]} 9... bxc6 {[%clk
0:04:40]} 10. h5 {[%clk 0:04:36.5]} 10... Rb8 {[%clk 0:04:34.1]} 11. hxg6 {[%clk
0:04:33.3]} 11... fxg6 {[%clk 0:04:34]} 12. Bxg7 {[%clk 0:04:29.9]} 12... Kxg7
{[%clk 0:04:33.9]} 13. Qh6+ {[%clk 0:04:28.8]} 13... Kg8 {[%clk 0:04:32.4]} 14.
Ne4 {[%clk 0:04:27.5]} 14... Rf7 {[%clk 0:04:25.2]} 15. Nxf6+ {[%clk 0:04:23.7]}
15... exf6 {[%clk 0:04:25.1]} 16. O-O-O {[%clk 0:04:22.8]} 16... Be6 {[%clk
0:03:41.5]} 17. b3 {[%clk 0:04:18.7]} 17... Qa5 {[%clk 0:03:37.6]} 18. Kb2
{[%clk 0:04:05.3]} 18... Qe5+ {[%clk 0:03:25.3]} 19. c3 {[%clk 0:04:04.2]} 19...
a5 {[%clk 0:03:21.7]} 20. Qe3 {[%clk 0:04:01]} 20... a4 {[%clk 0:03:16.3]} 21.
Qxe5 {[%clk 0:03:58.5]} 21... dxe5 {[%clk 0:03:11.3]} 22. Rd6 {[%clk 0:03:56]}
22... Bd5 {[%clk 0:02:58.9]} 23. b4 {[%clk 0:03:54.8]} 23... a3+ {[%clk
0:02:44]} 24. Kxa3 {[%clk 0:03:49]} 24... Ra8+ {[%clk 0:02:42.3]} 25. Kb2 {[%clk
0:03:48.1]} 25... Rxa2+ {[%clk 0:02:41.3]} 26. Kb1 {[%clk 0:03:47.4]} 26... Ra3
{[%clk 0:02:37.4]} 27. Kb2 {[%clk 0:03:45.6]} 27... Ra2+ {[%clk 0:02:33.1]} 28.
Kb1 {[%clk 0:03:44.4]} 28... Rfa7 {[%clk 0:02:27.2]} 29. f3 {[%clk 0:03:38.7]}
29... Ra1+ {[%clk 0:02:23.1]} 30. Kc2 {[%clk 0:03:37.9]} 30... Bc4 {[%clk
0:02:15.4]} 31. Kd2 {[%clk 0:03:23.1]} 31... Kg7 {[%clk 0:01:55.8]} 32. Rxc6
{[%clk 0:03:16]} 32... Bb3 {[%clk 0:01:50]} 33. g3 {[%clk 0:03:06.9]} 33... Rd1+
{[%clk 0:01:15.1]} 34. Ke3 {[%clk 0:03:05.6]} 34... h5 {[%clk 0:00:55.8]} 35.
Bg2 {[%clk 0:02:54.7]} 35... Rxh1 {[%clk 0:00:52]} 36. Bxh1 {[%clk 0:02:54.6]}
36... Ra1 {[%clk 0:00:48.3]} 37. Bg2 {[%clk 0:02:53.6]} 37... g5 {[%clk
0:00:45.3]} 38. b5 {[%clk 0:02:50.3]} 38... Re1 {[%clk 0:00:34.9]} 39. Kf2
{[%clk 0:02:48.7]} 39... Rc1 {[%clk 0:00:31.5]} 40. b6 {[%clk 0:02:47.7]} 40...
Ba4 {[%clk 0:00:18.5]} 41. Rc7+ {[%clk 0:02:45]} 41... Kg6 {[%clk 0:00:18]} 42.
f4 {[%clk 0:02:42.2]} 42... gxf4 {[%clk 0:00:15.8]} 43. gxf4 {[%clk 0:02:40.9]}
43... exf4 {[%clk 0:00:15.7]} 44. b7 {[%clk 0:02:39.7]} 44... Rb1 {[%clk
0:00:14.8]} 45. Rc8 {[%clk 0:02:37.8]} 45... Rxb7 {[%clk 0:00:10.1]} 46. Bxb7
{[%clk 0:02:37.7]} 1-0

[Event "Live Chess"]
[Site "Chess.com"]
[Date "2024.06.02"]
[Round "-"]
[White "LL220284LL"]
[Black "missedJariChance"]
[Result "1-0"]
[WhiteElo "2500"]
[BlackElo "1360"]
[TimeControl "300"]
[EndTime "5:27:46 PDT"]
[Termination "LL220284LL won on time"]

1. Nf3 {[%clk 0:04:56.6]} 1... d5 {[%clk 0:04:56.9]} 2. b3 {[%clk 0:04:51.2]}
2... Nf6 {[%clk 0:04:44.8]} 3. Bb2 {[%clk 0:04:37.5]} 3... e6 {[%clk 0:04:41]}
4. g3 {[%clk 0:04:31.1]} 4... Be7 {[%clk 0:04:39.4]} 5. Bg2 {[%clk 0:04:20.3]}
5... c5 {[%clk 0:04:37.9]} 6. d3 {[%clk 0:03:57.8]} 6... O-O {[%clk 0:04:35.5]}
7. O-O {[%clk 0:03:52.7]} 7... Nc6 {[%clk 0:04:32.2]} 8. Nbd2 {[%clk 0:03:36]}
8... Nh5 {[%clk 0:04:27.7]} 9. e4 {[%clk 0:03:30.6]} 9... Bf6 {[%clk 0:04:25.1]}
10. e5 {[%clk 0:03:29.1]} 10... Be7 {[%clk 0:04:23]} 11. Ne1 {[%clk 0:03:25.4]}
11... g6 {[%clk 0:04:18.9]} 12. f4 {[%clk 0:03:24.6]} 12... Ng7 {[%clk
0:04:13.8]} 13. Nef3 {[%clk 0:03:22.4]} 13... a6 {[%clk 0:03:58.4]} 14. h3
{[%clk 0:03:13]} 14... b5 {[%clk 0:03:42.9]} 15. g4 {[%clk 0:03:00.1]} 15... d4
{[%clk 0:03:37.6]} 16. Ne4 {[%clk 0:02:58.6]} 16... Bb7 {[%clk 0:03:34.4]} 17.
Qe1 {[%clk 0:02:34]} 17... Nb4 {[%clk 0:03:27.2]} 18. Qf2 {[%clk 0:02:31.6]}
18... Rc8 {[%clk 0:03:07.8]} 19. Rfe1 {[%clk 0:02:10.7]} 19... Re8 {[%clk
0:02:56.9]} 20. Re2 {[%clk 0:02:07.7]} 20... Nd5 {[%clk 0:02:47.8]} 21. Bc1
{[%clk 0:02:04.9]} 21... Nc3 {[%clk 0:02:37.7]} 22. Nxc3 {[%clk 0:02:02.5]}
22... dxc3 {[%clk 0:02:31.6]} 23. Be3 {[%clk 0:01:58.4]} 23... Bd5 {[%clk
0:02:17.6]} 24. a4 {[%clk 0:01:54.9]} 24... b4 {[%clk 0:02:12.2]} 25. Rd1 {[%clk
0:01:49.2]} 25... a5 {[%clk 0:02:09.8]} 26. Kh1 {[%clk 0:01:41.3]} 26... Qd7
{[%clk 0:01:56]} 27. Rde1 {[%clk 0:01:35.1]} 27... Qc6 {[%clk 0:01:50]} 28. Ng1
{[%clk 0:01:31.4]} 28... Bxg2+ {[%clk 0:01:39.9]} 29. Qxg2 {[%clk 0:01:31.3]}
29... Qxg2+ {[%clk 0:01:38.2]} 30. Kxg2 {[%clk 0:01:29.4]} 30... Red8 {[%clk
0:01:35.7]} 31. Bf2 {[%clk 0:01:27.6]} 31... h5 {[%clk 0:01:26.8]} 32. Re4
{[%clk 0:01:22]} 32... hxg4 {[%clk 0:01:19.5]} 33. hxg4 {[%clk 0:01:21.9]} 33...
Rd7 {[%clk 0:01:05.2]} 34. Rc4 {[%clk 0:01:18.9]} 34... Rdc7 {[%clk 0:00:52.5]}
35. Nh3 {[%clk 0:01:17.3]} 35... Ne8 {[%clk 0:00:46.4]} 36. Bg1 {[%clk
0:01:13.1]} 36... Kg7 {[%clk 0:00:44.6]} 37. Nf2 {[%clk 0:01:11.9]} 37... Rc6
{[%clk 0:00:41.8]} 38. Ne4 {[%clk 0:01:10.1]} 38... Nc7 {[%clk 0:00:20.7]} 39.
Bxc5 {[%clk 0:01:07.2]} 39... Bxc5 {[%clk 0:00:16.8]} 40. Rxc5 {[%clk
0:01:06.7]} 40... Rxc5 {[%clk 0:00:15.3]} 41. Nxc5 {[%clk 0:01:06.6]} 41... Nd5
{[%clk 0:00:13]} 42. Nb7 {[%clk 0:01:03.2]} 42... Nxf4+ {[%clk 0:00:11.2]} 43.
Kf3 {[%clk 0:01:02.5]} 43... Nd5 {[%clk 0:00:09]} 44. Nxa5 {[%clk 0:01:01.7]}
44... Rh8 {[%clk 0:00:06.7]} 45. Kg3 {[%clk 0:00:58.7]} 45... Rh6 {[%clk
0:00:03.5]} 46. Nc4 {[%clk 0:00:56.8]} 46... Rh8 {[%clk 0:00:01.3]} 47. Nd6
{[%clk 0:00:54.5]} 1-0

[Event "Live Chess"]
[Site "Chess.com"]
[Date "2024.06.02"]
[Round "-"]
[White "MagnersCarlsberg2870"]
[Black "vincents82"]
[Result "0-1"]
[WhiteElo "1777"]
[BlackElo "1998"]
[TimeControl "300"]
[EndTime "5:27:59 PDT"]
[Termination "vincents82 won by resignation"]

1. d4 {[%clk 0:04:57.8]} 1... d5 {[%clk 0:04:56]} 2. e3 {[%clk 0:04:56.3]} 2...
Nf6 {[%clk 0:04:52.2]} 3. Bd3 {[%clk 0:04:55.1]} 3... c5 {[%clk 0:04:48.8]} 4.
c3 {[%clk 0:04:53.8]} 4... Nc6 {[%clk 0:04:46.7]} 5. f4 {[%clk 0:04:50.6]} 5...
Bg4 {[%clk 0:04:33.1]} 6. Nf3 {[%clk 0:04:48.7]} 6... cxd4 {[%clk 0:04:31.5]} 7.
exd4 {[%clk 0:04:47.1]} 7... e6 {[%clk 0:04:25.9]} 8. Qa4 {[%clk 0:04:45.7]}
8... Bxf3 {[%clk 0:04:18.3]} 9. gxf3 {[%clk 0:04:43]} 9... Bd6 {[%clk
0:04:12.6]} 10. Rg1 {[%clk 0:04:34.5]} 10... g6 {[%clk 0:04:10.8]} 11. Nd2
{[%clk 0:04:30.5]} 11... Bxf4 {[%clk 0:04:07.3]} 12. Nb3 {[%clk 0:04:26]} 12...
Bxc1 {[%clk 0:04:03.3]} 13. Rxc1 {[%clk 0:04:24.4]} 13... O-O {[%clk 0:04:00.1]}
14. Nd2 {[%clk 0:04:14]} 14... Rc8 {[%clk 0:03:56.5]} 15. Qd1 {[%clk 0:04:11.5]}
15... Qc7 {[%clk 0:03:54.2]} 16. Nf1 {[%clk 0:04:02.9]} 16... Nxd4 {[%clk
0:03:49.2]} 17. Be2 {[%clk 0:03:53.4]} 17... Nxe2 {[%clk 0:03:39.2]} 18. Qxe2
{[%clk 0:03:51.3]} 18... d4 {[%clk 0:03:37.3]} 19. Ng3 {[%clk 0:03:42.5]} 19...
dxc3 {[%clk 0:03:31.7]} 20. Rxc3 {[%clk 0:03:40.6]} 20... Qb6 {[%clk 0:03:30.6]}
21. Ne4 {[%clk 0:03:34.7]} 21... Qxg1+ {[%clk 0:03:28.5]} 0-1

[Event "Live Chess"]
[Site "Chess.com"]
[Date "2024.06.02"]
[Round "-"]
[White "Queensandpawns"]
[Black "slava_ukr"]
[Result "1-0"]
[WhiteElo "2279"]
[BlackElo "2369"]
[TimeControl "300"]
[EndTime "5:28:03 PDT"]
[Termination "Queensandpawns won on time"]

1. d4 {[%clk 0:04:57.8]} 1... d5 {[%clk 0:04:59.4]} 2. Nc3 {[%clk 0:04:57.3]}
2... Nf6 {[%clk 0:04:58.2]} 3. Bf4 {[%clk 0:04:56.9]} 3... e6 {[%clk 0:04:56.9]}
4. e3 {[%clk 0:04:56.2]} 4... Bd6 {[%clk 0:04:56.3]} 5. Nf3 {[%clk 0:04:54.3]}
5... O-O {[%clk 0:04:53.8]} 6. Bd3 {[%clk 0:04:52]} 6... b6 {[%clk 0:04:52.9]}
7. Ne5 {[%clk 0:04:47.9]} 7... Ba6 {[%clk 0:04:48.4]} 8. Qe2 {[%clk 0:04:41.1]}
8... Bxd3 {[%clk 0:04:46.8]} 9. Qxd3 {[%clk 0:04:41]} 9... Bxe5 {[%clk 0:04:40]}
10. Bxe5 {[%clk 0:04:37.8]} 10... Nbd7 {[%clk 0:04:38.9]} 11. O-O-O {[%clk
0:04:36.2]} 11... Nxe5 {[%clk 0:04:36.7]} 12. dxe5 {[%clk 0:04:36.1]} 12... Nd7
{[%clk 0:04:33.7]} 13. f4 {[%clk 0:04:36]} 13... c5 {[%clk 0:04:28.1]} 14. e4
{[%clk 0:04:34.3]} 14... d4 {[%clk 0:03:58.6]} 15. Nb5 {[%clk 0:04:33.2]} 15...
a6 {[%clk 0:03:53.4]} 16. Nd6 {[%clk 0:04:31.7]} 16... Qc7 {[%clk 0:03:52.7]}
17. Qh3 {[%clk 0:04:13.4]} 17... b5 {[%clk 0:03:49.7]} 18. Rd3 {[%clk 0:04:04]}
18... Nb6 {[%clk 0:03:32.6]} 19. Rg3 {[%clk 0:04:01.1]} 19... Nc4 {[%clk
0:03:15.4]} 20. Qh6 {[%clk 0:03:57.9]} 20... g6 {[%clk 0:03:14.3]} 21. h4 {[%clk
0:03:45.2]} 21... Nxd6 {[%clk 0:03:13.1]} 22. exd6 {[%clk 0:03:45.1]} 22... Qxd6
{[%clk 0:03:10.8]} 23. h5 {[%clk 0:03:45]} 23... Ra7 {[%clk 0:02:34.3]} 24. hxg6
{[%clk 0:03:06.1]} 24... fxg6 {[%clk 0:02:33.3]} 25. e5 {[%clk 0:02:59.5]} 25...
Qd5 {[%clk 0:01:43.2]} 26. Rxg6+ {[%clk 0:02:46]} 26... hxg6 {[%clk 0:01:41.3]}
27. Qh8+ {[%clk 0:02:45.2]} 27... Kf7 {[%clk 0:01:40.6]} 28. Qh7+ {[%clk
0:02:36.9]} 28... Ke8 {[%clk 0:01:39.4]} 29. Qxa7 {[%clk 0:02:36.8]} 29... Qd7
{[%clk 0:01:18.4]} 30. Qxc5 {[%clk 0:02:29.7]} 30... d3 {[%clk 0:00:36.1]} 31.
cxd3 {[%clk 0:02:22.8]} 31... Qxd3 {[%clk 0:00:17.4]} 32. Rd1 {[%clk 0:02:04.1]}
32... Qc4+ {[%clk 0:00:15.1]} 33. Qxc4 {[%clk 0:02:02.4]} 33... bxc4 {[%clk
0:00:14.5]} 34. g3 {[%clk 0:02:02.3]} 34... Ke7 {[%clk 0:00:13]} 35. Kd2 {[%clk
0:02:00.8]} 35... Rh8 {[%clk 0:00:09.5]} 36. Kc3 {[%clk 0:01:59.7]} 36... Rh3
{[%clk 0:00:08.4]} 37. Rg1 {[%clk 0:01:58.8]} 37... Rh2 {[%clk 0:00:07.3]} 38.
b3 {[%clk 0:01:54.4]} 38... Rxa2 {[%clk 0:00:05.1]} 39. Kxc4 {[%clk 0:01:54]}
39... a5 {[%clk 0:00:03.7]} 40. Kb5 {[%clk 0:01:52.8]} 40... Rb2 {[%clk
0:00:02.7]} 41. Kxa5 {[%clk 0:01:51.9]} 41... Rxb3 {[%clk 0:00:01.9]} 42. Ka4
{[%clk 0:01:51.8]} 42... Rb7 {[%clk 0:00:00.3]} 43. g4 {[%clk 0:01:51.7]} 1-0

[Event "Live Chess"]
[Site "Chess.com"]
[Date "2024.06.02"]
[Round "-"]
[White "lateforthesky"]
[Black "upoe610"]
[Result "1-0"]
[WhiteElo "2062"]
[BlackElo "2133"]
[TimeControl "300"]
[EndTime "5:28:10 PDT"]
[Termination "lateforthesky won by resignation"]

1. e4 {[%clk 0:04:56]} 1... e5 {[%clk 0:04:58.8]} 2. Nf3 {[%clk 0:04:54.4]} 2...
Nc6 {[%clk 0:04:54.4]} 3. Bb5 {[%clk 0:04:51.9]} 3... a6 {[%clk 0:04:53.2]} 4.
Ba4 {[%clk 0:04:49.9]} 4... Nf6 {[%clk 0:04:52.1]} 5. O-O {[%clk 0:04:47.1]}
5... Be7 {[%clk 0:04:51.3]} 6. Qe2 {[%clk 0:04:45.2]} 6... b5 {[%clk 0:04:50]}
7. Bb3 {[%clk 0:04:43.7]} 7... O-O {[%clk 0:04:49.1]} 8. c3 {[%clk 0:04:42.1]}
8... d5 {[%clk 0:04:48.1]} 9. d3 {[%clk 0:04:40.7]} 9... Bg4 {[%clk 0:04:43]}
10. h3 {[%clk 0:04:37.3]} 10... Bh5 {[%clk 0:04:41.8]} 11. Rd1 {[%clk
0:04:36.2]} 11... Bg6 {[%clk 0:04:38.5]} 12. Nbd2 {[%clk 0:04:34.3]} 12... Na5
{[%clk 0:04:33.3]} 13. Bc2 {[%clk 0:04:32.8]} 13... Nc6 {[%clk 0:04:29.8]} 14.
Nf1 {[%clk 0:04:29.8]} 14... d4 {[%clk 0:04:27.9]} 15. Ng3 {[%clk 0:04:26.2]}
15... b4 {[%clk 0:04:26]} 16. cxd4 {[%clk 0:04:17.5]} 16... Nxd4 {[%clk
0:04:23.7]} 17. Nxd4 {[%clk 0:04:15.7]} 17... Qxd4 {[%clk 0:04:20.7]} 18. Bb3
{[%clk 0:04:09.6]} 18... Rfd8 {[%clk 0:04:13]} 19. Be3 {[%clk 0:04:07.7]} 19...
Qd6 {[%clk 0:04:10.3]} 20. Rac1 {[%clk 0:04:03.2]} 20... a5 {[%clk 0:04:07.1]}
21. Ba4 {[%clk 0:03:53]} 21... Nd7 {[%clk 0:04:02]} 22. Rc6 {[%clk 0:03:45.9]}
22... Nb6 {[%clk 0:03:52.8]} 23. Rxd6 {[%clk 0:03:41.3]} 23... Rxd6 {[%clk
0:03:52.7]} 24. Bxb6 {[%clk 0:03:38.8]} 24... cxb6 {[%clk 0:03:50.6]} 25. Bb5
{[%clk 0:03:35.7]} 25... Rc8 {[%clk 0:03:47.5]} 26. Nf5 {[%clk 0:03:25.8]} 26...
Bxf5 {[%clk 0:03:44.7]} 27. exf5 {[%clk 0:03:24.6]} 27... Rc5 {[%clk 0:03:44.4]}
28. Bc4 {[%clk 0:03:16.8]} 28... b5 {[%clk 0:03:43.1]} 29. Bb3 {[%clk 0:03:14]}
29... a4 {[%clk 0:03:42.2]} 30. Bc2 {[%clk 0:03:12.8]} 30... Bf6 {[%clk
0:03:38.6]} 31. Bb1 {[%clk 0:03:10.7]} 31... h6 {[%clk 0:03:36.7]} 32. Qe1
{[%clk 0:03:04.7]} 32... Rd4 {[%clk 0:03:35.4]} 33. Rc1 {[%clk 0:03:00.5]} 33...
Rcd5 {[%clk 0:03:34.4]} 34. Rc8+ {[%clk 0:02:54.1]} 34... Kh7 {[%clk 0:03:33]}
35. Kh2 {[%clk 0:02:45.3]} 35... Rd6 {[%clk 0:03:23.8]} 36. Rc5 {[%clk
0:02:31.6]} 36... e4 {[%clk 0:03:22.2]} 37. dxe4 {[%clk 0:02:24.8]} 37... Rd1
{[%clk 0:03:20.4]} 38. Qxb4 {[%clk 0:02:23.6]} 38... Bd4 {[%clk 0:03:13.6]} 39.
Rxb5 {[%clk 0:02:12.2]} 39... Bxf2 {[%clk 0:03:10.8]} 40. Bc2 {[%clk 0:02:04.9]}
40... R1d2 {[%clk 0:02:54]} 41. Bxa4 {[%clk 0:01:55.1]} 41... R6d3 {[%clk
0:02:52.6]} 42. Qxd2 {[%clk 0:01:40.8]} 42... Rxd2 {[%clk 0:02:51]} 43. Rb3
{[%clk 0:01:36.7]} 43... Bd4 {[%clk 0:02:48.7]} 44. Bc6 {[%clk 0:01:34.7]} 44...
Be5+ {[%clk 0:02:47]} 45. Kg1 {[%clk 0:01:31.9]} 45... Bg3 {[%clk 0:02:43.3]}
46. Rxg3 {[%clk 0:01:23.5]} 1-0

[Event "Live Chess"]
[Site "Chess.com"]
[Date "2024.06.02"]
[Round "-"]
[White "peteopeteo"]
[Black "Ninifu"]
[Result "0-1"]
[WhiteElo "1556"]
[BlackElo "2011"]
[TimeControl "300"]
[EndTime "5:29:06 PDT"]
[Termination "Ninifu won by resignation"]

1. e4 {[%clk 0:04:59.6]} 1... d5 {[%clk 0:04:58.6]} 2. exd5 {[%clk 0:04:58.7]}
2... Nf6 {[%clk 0:04:57.9]} 3. d4 {[%clk 0:04:53.9]} 3... Bg4 {[%clk 0:04:56.6]}
4. Be2 {[%clk 0:04:50.8]} 4... Bxe2 {[%clk 0:04:55]} 5. Qxe2 {[%clk 0:04:47.5]}
5... Qxd5 {[%clk 0:04:54.2]} 6. Nf3 {[%clk 0:04:40.8]} 6... e6 {[%clk
0:04:50.8]} 7. c4 {[%clk 0:04:35.5]} 7... Bb4+ {[%clk 0:04:45.2]} 8. Bd2 {[%clk
0:04:31.7]} 8... Qa5 {[%clk 0:04:35.1]} 9. a3 {[%clk 0:04:15.4]} 9... Bxd2+
{[%clk 0:04:33.4]} 10. Qxd2 {[%clk 0:04:15.3]} 10... Qxd2+ {[%clk 0:04:27]} 11.
Nbxd2 {[%clk 0:04:15.2]} 11... Nc6 {[%clk 0:04:23.5]} 12. O-O {[%clk 0:04:11.7]}
12... O-O-O {[%clk 0:04:22.6]} 13. Nb3 {[%clk 0:03:57.7]} 13... h6 {[%clk
0:04:09.8]} 14. Rad1 {[%clk 0:03:54]} 14... Rhe8 {[%clk 0:04:00]} 15. Ne5 {[%clk
0:03:48.9]} 15... Nxe5 {[%clk 0:03:56.5]} 16. dxe5 {[%clk 0:03:48.8]} 16... Rxd1
{[%clk 0:03:50.7]} 17. Rxd1 {[%clk 0:03:47.7]} 17... Ng4 {[%clk 0:03:49.1]} 18.
f4 {[%clk 0:03:31]} 18... Ne3 {[%clk 0:03:45.8]} 19. Rd3 {[%clk 0:03:24.3]}
19... Nxc4 {[%clk 0:03:43]} 20. Rg3 {[%clk 0:03:00.6]} 20... g6 {[%clk
0:03:40.7]} 21. Nc5 {[%clk 0:02:51.9]} 21... b6 {[%clk 0:03:32]} 22. Ne4 {[%clk
0:02:50.1]} 22... Rd8 {[%clk 0:03:15.8]} 23. Rc3 {[%clk 0:02:30.2]} 23... Rd4
{[%clk 0:03:04.5]} 24. Nf6 {[%clk 0:02:18.2]} 24... Nxb2 {[%clk 0:02:57.6]} 25.
g3 {[%clk 0:02:09.1]} 25... Nc4 {[%clk 0:02:46.8]} 26. Ne8 {[%clk 0:02:02]}
26... Kd8 {[%clk 0:02:08.1]} 27. Nf6 {[%clk 0:01:52.9]} 27... c5 {[%clk
0:02:04.8]} 28. Ng8 {[%clk 0:01:40.9]} 28... h5 {[%clk 0:02:02.7]} 29. Nh6
{[%clk 0:01:38.8]} 29... Ke7 {[%clk 0:01:58.1]} 30. Ng8+ {[%clk 0:01:37.3]}
30... Kf8 {[%clk 0:01:53.2]} 31. Nf6 {[%clk 0:01:35.6]} 31... b5 {[%clk
0:01:42.9]} 32. Nh7+ {[%clk 0:01:26.2]} 32... Ke7 {[%clk 0:01:38.7]} 33. Nf6
{[%clk 0:01:24.5]} 33... a5 {[%clk 0:01:36.9]} 34. Ng8+ {[%clk 0:01:23.4]} 34...
Kd8 {[%clk 0:01:29.6]} 35. Nf6 {[%clk 0:01:19.4]} 35... a4 {[%clk 0:01:27.7]}
36. Kg2 {[%clk 0:01:12.5]} 36... b4 {[%clk 0:01:26.4]} 37. axb4 {[%clk
0:01:11.1]} 37... cxb4 {[%clk 0:01:25.7]} 38. Kh3 {[%clk 0:01:06.7]} 38... bxc3
{[%clk 0:01:23.3]} 0-1

[Event "Live Chess"]
[Site "Chess.com"]
[Date "2024.06.02"]
[Round "-"]
[White "FlyingChessKestrel13"]
[Black "ClassyChameleon"]
[Result "1-0"]
[WhiteElo "2086"]
[BlackElo "1548"]
[TimeControl "300"]
[EndTime "5:29:16 PDT"]
[Termination "FlyingChessKestrel13 won by resignation"]

1. e4 {[%clk 0:04:54.1]} 1... e5 {[%clk 0:04:58.4]} 2. Nf3 {[%clk 0:04:51.7]}
2... Nc6 {[%clk 0:04:57.8]} 3. Bb5 {[%clk 0:04:50.1]} 3... a6 {[%clk 0:04:56.8]}
4. Ba4 {[%clk 0:04:48.5]} 4... b5 {[%clk 0:04:56.1]} 5. Bb3 {[%clk 0:04:47.7]}
5... Nf6 {[%clk 0:04:53.7]} 6. d3 {[%clk 0:04:46.2]} 6... Bc5 {[%clk 0:04:52.3]}
7. O-O {[%clk 0:04:45.1]} 7... O-O {[%clk 0:04:51.1]} 8. c3 {[%clk 0:04:44]}
8... h6 {[%clk 0:04:45.6]} 9. Nbd2 {[%clk 0:04:40.5]} 9... Na5 {[%clk
0:04:38.8]} 10. Bc2 {[%clk 0:04:39]} 10... Bb7 {[%clk 0:04:36.4]} 11. b4 {[%clk
0:04:37]} 11... Bxf2+ {[%clk 0:04:32.7]} 12. Rxf2 {[%clk 0:04:35]} 12... Nc6
{[%clk 0:04:32.1]} 13. h3 {[%clk 0:04:33.2]} 13... d5 {[%clk 0:04:29.1]} 14. a4
{[%clk 0:04:25]} 14... bxa4 {[%clk 0:04:25.3]} 15. Bxa4 {[%clk 0:04:23]} 15...
Re8 {[%clk 0:04:21.1]} 16. Bb2 {[%clk 0:04:14.5]} 16... Re7 {[%clk 0:04:07.8]}
17. Nh4 {[%clk 0:03:51.9]} 17... d4 {[%clk 0:03:58.7]} 18. cxd4 {[%clk
0:03:48.1]} 18... exd4 {[%clk 0:03:54]} 19. Nf5 {[%clk 0:03:45.7]} 19... Rd7
{[%clk 0:03:50.7]} 20. Bxc6 {[%clk 0:03:43]} 20... Bxc6 {[%clk 0:03:49.5]} 21.
Nf3 {[%clk 0:03:41.9]} 21... Bb5 {[%clk 0:03:45.9]} 22. N3xd4 {[%clk 0:03:35.4]}
22... c6 {[%clk 0:03:34.9]} 23. e5 {[%clk 0:03:28.7]} 23... Nh7 {[%clk
0:03:31.4]} 24. Qg4 {[%clk 0:03:22.5]} 24... Ng5 {[%clk 0:03:22]} 25. h4 {[%clk
0:03:17.4]} 25... Ne6 {[%clk 0:03:18]} 26. Nxe6 {[%clk 0:03:03.4]} 26... fxe6
{[%clk 0:03:17.9]} 27. Nd6 {[%clk 0:03:02.4]} 27... Bxd3 {[%clk 0:03:12.2]} 28.
Qxe6+ {[%clk 0:03:00.7]} 28... Kh7 {[%clk 0:03:04.2]} 29. Rd1 {[%clk 0:02:58.8]}
29... Bb5 {[%clk 0:02:47.6]} 30. h5 {[%clk 0:02:51.4]} 30... Raa7 {[%clk
0:02:34]} 31. Qf5+ {[%clk 0:02:49.6]} 31... Kh8 {[%clk 0:02:31.5]} 32. Qf8+
{[%clk 0:02:44.6]} 32... Qxf8 {[%clk 0:02:30.4]} 33. Rxf8+ {[%clk 0:02:43.7]}
33... Kh7 {[%clk 0:02:29.8]} 34. Rdf1 {[%clk 0:02:42.7]} 34... Bxf1 {[%clk
0:02:27.3]} 35. Rxf1 {[%clk 0:02:40.4]} 35... a5 {[%clk 0:02:14.1]} 36. bxa5
{[%clk 0:02:38]} 36... Rxa5 {[%clk 0:02:13.1]} 37. Re1 {[%clk 0:02:31.4]} 37...
Re7 {[%clk 0:01:52.3]} 38. Nf5 {[%clk 0:02:24.8]} 38... Re6 {[%clk 0:01:45.6]}
39. Nd4 {[%clk 0:02:23.5]} 39... Rexe5 {[%clk 0:01:43.5]} 40. Rxe5 {[%clk
0:02:19.3]} 40... Rxe5 {[%clk 0:01:42.6]} 41. Nxc6 {[%clk 0:02:16.2]} 41... Rxh5
{[%clk 0:01:41.8]} 42. Ne5 {[%clk 0:02:13.7]} 42... Rh4 {[%clk 0:01:28.4]} 43.
Nf3 {[%clk 0:02:11.1]} 43... Rb4 {[%clk 0:01:27.2]} 44. Be5 {[%clk 0:02:09.7]}
44... g5 {[%clk 0:01:19.4]} 45. Kh2 {[%clk 0:02:04]} 45... Kg6 {[%clk
0:01:17.5]} 46. Bd6 {[%clk 0:02:01.3]} 46... Rb3 {[%clk 0:01:08.3]} 47. Bc5
{[%clk 0:01:54.6]} 47... h5 {[%clk 0:01:03.9]} 48. Be7 {[%clk 0:01:49.9]} 48...
g4 {[%clk 0:01:00.9]} 49. Ne5+ {[%clk 0:01:41.4]} 49... Kf5 {[%clk 0:00:48]} 50.
Nc4 {[%clk 0:01:38.5]} 50... Ke6 {[%clk 0:00:34.7]} 51. Bh4 {[%clk 0:01:35.2]}
51... Kf5 {[%clk 0:00:29.3]} 52. Nd2 {[%clk 0:01:30.5]} 52... Rb2 {[%clk
0:00:25.5]} 53. Nf1 {[%clk 0:01:29]} 53... Kf4 {[%clk 0:00:18.9]} 54. Bd8 {[%clk
0:01:19.1]} 54... Rf2 {[%clk 0:00:13.8]} 55. Ng3 {[%clk 0:01:14.6]} 55... Ke3
{[%clk 0:00:10.8]} 56. Bb6+ {[%clk 0:01:11.5]} 56... Kd2 {[%clk 0:00:08.4]} 57.
Bxf2 {[%clk 0:01:10.8]} 57... h4 {[%clk 0:00:06.5]} 58. Nf5 {[%clk 0:01:08]}
58... g3+ {[%clk 0:00:05.1]} 59. Bxg3 {[%clk 0:01:07.2]} 59... hxg3+ {[%clk
0:00:05]} 60. Kxg3 {[%clk 0:01:06.3]} 60... Ke2 {[%clk 0:00:04.4]} 61. Kf4
{[%clk 0:01:05.3]} 61... Kf2 {[%clk 0:00:03.8]} 62. g4 {[%clk 0:01:05]} 1-0

[Event "Live Chess"]
[Site "Chess.com"]
[Date "2024.06.02"]
[Round "-"]
[White "Queensandpawns"]
[Black "MagnersCarlsberg2870"]
[Result "1-0"]
[WhiteElo "2280"]
[BlackElo "1776"]
[TimeControl "300"]
[EndTime "5:29:29 PDT"]
[Termination "Queensandpawns won by resignation"]

1. e4 {[%clk 0:04:59.3]} 1... d6 {[%clk 0:04:56]} 2. d4 {[%clk 0:04:56.6]} 2...
Nf6 {[%clk 0:04:55.2]} 3. Nc3 {[%clk 0:04:55.8]} 3... Nbd7 {[%clk 0:04:54.1]} 4.
Be3 {[%clk 0:04:55.2]} 4... e5 {[%clk 0:04:53.1]} 5. dxe5 {[%clk 0:04:53.6]}
5... dxe5 {[%clk 0:04:51.8]} 6. Qd2 {[%clk 0:04:52.8]} 6... c6 {[%clk
0:04:50.8]} 7. O-O-O {[%clk 0:04:52.3]} 7... a5 {[%clk 0:04:47.1]} 8. f4 {[%clk
0:04:51.8]} 8... Qc7 {[%clk 0:04:43.3]} 9. Nf3 {[%clk 0:04:35.4]} 9... Bb4
{[%clk 0:04:40.8]} 10. fxe5 {[%clk 0:04:31.9]} 10... Nxe5 {[%clk 0:04:37.6]} 11.
Nxe5 {[%clk 0:04:31.8]} 11... Bxc3 {[%clk 0:04:31.8]} 12. Qxc3 {[%clk
0:04:30.5]} 12... O-O {[%clk 0:04:28.9]} 13. Nf3 {[%clk 0:04:27.7]} 1-0